[Event "45th FIDE Womens Olympiad 2024"]
[Site "Budapest"]
[Date "2024.09.15"]
[Round "5.8"]
[White "Narva, Triin"]
[Black "Lazarne Vajda, Szidonia"]
[Result "0-1"]
[ECO "C56"]
[WhiteElo "2066"]
[BlackElo "2283"]
[Annotator "TA"]
[PlyCount "100"]
[EventDate "2024.09.05"]
[EventType "team-tourn"]
[EventCountry "HUN"]
[SourceTitle "playchess.com"]
[Source "ChessBase"]
[SourceQuality "1"]
[WhiteTeam "Estonia"]
[BlackTeam "Hungary"]
[WhiteTeamCountry "EST"]
[BlackTeamCountry "HUN"]
[TimeControl "40/5400+30:1800+30"]

{[%evp 28,100,14,16,14,22,37,0,11,0,107,106,182,185,172,168,165,164,186,120,191,156,171,128,127,125,157,14,273,259,311,315,302,288,368,192,277,247,264,259,431,166,233,154,137,137,134,75,71,-323,0,-893,-853,-1515,-1411,-1346,-1339,-1333,-1132,-2462,-2310,-29986,-29986,-29986,-29987,-29989,-29990,-29990,-29990,-29990,-29991,-29991,-29988,-29983,-29982]} 1. e4 {[%emt 0:00:03]} e5 {[%emt 0:00:13]} 2. Bc4 {[%emt 0:00:29]} Nf6 {[%emt 0:02:30]} 3. d4 {[%emt 0:00:49]} exd4 {[%emt 0:06:08]} 4. Nf3 {[%emt 0:00:31]} Nc6 {[%emt 0:01:34]} 5. e5 {[%emt 0:00:43]} d5 {[%emt 0:00:39]} 6. Bb5 {[%emt 0:00:08]} Ne4 {[%emt 0:00:35]} 7. Nxd4 {[%emt 0:00:40]} Bd7 {[%emt 0:00:29]} 8. Bxc6 {[%emt 0:00:27]} bxc6 {[%emt 0:00:06]} 9. O-O {[%emt 0:00:48]} Bc5 {[%emt 0:01:02]} 10. Be3 {[%emt 0:00:50]} Bb6 {[%emt 0:00:44]} 11. f3 {[%emt 0:07:14][%cal Bf2f3,Bf3f4][%mdl 32]} Ng5 {[%emt 0:00:26]} 12. f4 {[%emt 0:05:49]} Ne4 {[%emt 0:00:10]} 13. Nd2 {[%emt 0:14:43]} Nxd2 {[%emt 0:00:27]} 14. Qxd2 {[%emt 0:00:16]} c5 {[%emt 0:00:13]} 15. Nf3 {[%emt 0:05:57][%cal Oa2a4] Black should prevent a4!} d4 {[%emt 0:00:34]} 16. Bf2 {[%emt 0:00:11]} Bc6 {[%emt 0:03:56]} 17. Bh4 {[%emt 0:05:08]} Qd7 {[%emt 0:05:54] The position is equal.} 18. Rad1 {[%emt 0:13:10][%cal Of4f5] f5! is the strong threat.} c4 {[%emt 0:23:36]} (18... Qg4 $11 {remains equal.} 19. h3 Qh5) 19. Nxd4 $16 {[%emt 0:17:41]} Qg4 {[%emt 0:09:33]} (19... Be4 $16 20. Rfe1 Qxd4+ 21. Qxd4 Bxc2) 20. Qf2 $18 {[%emt 0:02:01]} O-O {[%emt 0:02:54][%cal Oc6g2]} 21. h3 {[%emt 0:02:07]} Qh5 {[%emt 0:05:26]} 22. Kh2 {[%emt 0:02:54]} Bb7 {[%emt 0:02:06]} 23. Qg3 {[%emt 0:08:42]} (23. f5 $18) 23... Kh8 {[%emt 0:02:07]} (23... Qg6 $16 {keeps fighting.} 24. Qf2 c3) 24. e6 {[%emt 0:04:56][%cal Be5e6,Be6e7][%mdl 32]} f6 {[%emt 0:03:59]} 25. e7 {[%emt 0:01:10] Inhibits Rfd8.} Rfe8 {[%emt 0:07:07]} 26. Rfe1 $40 {[%emt 0:00:32][%mdl 128] White has strong attack.} Qf7 {[%emt 0:02:01]} 27. Qa3 {[%emt 0:05:22] Black is weak on the dark squares} (27. Ne6 $1 $16 {[%cal Re6d8]} Qxe7 28. f5) 27... c5 $2 {[%emt 0:02:00][%mdl 8192]} (27... Qg6 $11 {and Black is okay.} 28. Qg3 Kg8) 28. Nf5 {[%emt 0:00:28] Black must now prevent Nd6.} Qg6 {[%emt 0:00:28][%csl Gb7][%cal Rg6g2]} 29. g4 {[%emt 0:00:26]} h5 {[%emt 0:06:13]} 30. Qg3 {[%emt 0:00:37][%cal Of5g7] Hoping for Nxg7!} Bc7 {[%emt 0:02:33]} 31. Re2 {[%emt 0:00:34]} (31. Rd7 $142 Rac8 32. Re6) 31... Bc8 {[%emt 0:02:36]} (31... c3 $142) 32. Rd5 {[%emt 0:00:27]} hxg4 {[%emt 0:03:15]} 33. hxg4 {[%emt 0:00:19]} Bxf5 $2 {[%emt 0:00:51]} (33... c3) 34. gxf5 $2 {[%emt 0:00:42]} (34. Rxf5 c3 35. bxc3 (35. Qh3 Kg8 $18)) 34... Qh6 {[%emt 0:00:39]} (34... Qh5 {was called for.} 35. Re1 c3) 35. Kg1 {[%emt 0:00:35][%cal Og3g4] Qg4! would now be deadly.} (35. Rxc5 $2 Bxf4 36. Kg2 Bxg3 $19) 35... Bxf4 {[%emt 0:01:15] [#]} 36. Qg4 {[%emt 0:00:22][%cal Od5d1]} Be3+ {[%emt 0:00:59]} 37. Kf1 {[%emt 0:00:26]} (37. Kh1 $142 {Threatens to win with Rh2.} Qf4 (37... Rxe7 $2 {is the wrong capture.} 38. Rh2 $18) 38. Qxf4 Bxf4 39. Rxc5) 37... Rxe7 $16 {[%emt 0:01:03] [#]} 38. Qg3 $2 {[%emt 0:00:40][%mdl 8192]} (38. Rh2 $1 $16 {and life is bright.} Qh7 39. Qxc4) 38... Bf4 {[%emt 0:00:54]} (38... Kg8 $19 39. Rd6 Rae8) 39. Qf2 $2 {[%emt 0:00:32][%mdl 8192]} (39. Qg6 $11 Rxe2 40. Qxh6+ Bxh6 41. Kxe2) 39... Rxe2 $19 {[%emt 0:00:23]} 40. Kxe2 {[%emt 0:00:06]} Re8+ {[%emt 0:00:58]} 41. Kf3 {[%emt 0:17:11]} Bc1 {[%emt 0:07:15]} 42. Kg2 {[%emt 0:07:44]} Qh5 {[%emt 0:00:07]} 43. Bg3 {[%emt 0:04:50]} Re2 {[%emt 0:00:49] ( -> ...Be3)} (43... Bxb2 44. Qf3 Re2+ 45. Bf2 Qg5+ 46. Kf1 Rxc2 47. Be3 $11) 44. Rxc5 {[%emt 0:00:31]} Be3 {[%emt 0:00:36] Black mates.} 45. Rc8+ {[%emt 0:00:19]} Kh7 {[%emt 0:00:04]} 46. Qxe2 {[%emt 0:02:23]} Qxe2+ {[%emt 0:00:04]} 47. Kh3 {[%emt 0:00:20]} Qxc2 {[%emt 0:00:18]} 48. Rc7 {[%emt 0:00:37]} Qxf5+ {[%emt 0:00:07]} 49. Kg2 {[%emt 0:00:33]} Bb6 {[%emt 0:00:39]} 50. Re7 {[%emt 0:00:40]} Qc2+ {[%emt 0:00:05] Weighted Error Value: White=0.87/Black=0.45.  Loses game:     	White=2     	Black=1      Missed win:     	---       	Black=1      Mistake:       	White=5     	Black=6      Inaccurate:     	White=3     	---        OK:         	White=7     	Black=6      Best:        	White=3     	Black=3} 0-1

[Event "45th FIDE Womens Olympiad 2024"]
[Site "Budapest"]
[Date "2024.09.15"]
[Round "5.9"]
[White "Zhu, Jiner"]
[Black "Mkrtchian, Lilit"]
[Result "0-1"]
[ECO "B17"]
[WhiteElo "2487"]
[BlackElo "2366"]
[Annotator "TA"]
[PlyCount "100"]
[EventDate "2024.09.05"]
[EventType "team-tourn"]
[EventCountry "HUN"]
[SourceTitle "playchess.com"]
[Source "ChessBase"]
[SourceQuality "1"]
[WhiteTeam "China"]
[BlackTeam "Armenia"]
[WhiteTeamCountry "CHN"]
[BlackTeamCountry "ARM"]
[TimeControl "40/5400+30:1800+30"]

{[%evp 33,100,-7,6,20,16,2,16,0,0,0,8,0,0,-78,-72,-77,-40,-36,-30,-68,-46,-58,-57,-60,-66,-72,-74,-81,-100,-102,-92,-99,-82,-90,-43,-78,-98,-261,-264,-246,-195,-189,-189,-220,-219,-179,-180,-414,-411,-395,-384,-6095,-2433,-4837,-1503,-6099,-6099,-29978,-29968,-48,-29977,-29977,-29978,-12829,-5065,-29982,-4133,-29982,-29982]} 1. e4 {[%emt 0:00:06]} c6 {[%emt 0:00:18]} 2. d4 {[%emt 0:00:09]} d5 {[%emt 0:00:06]} 3. Nc3 {[%emt 0:00:07]} dxe4 {[%emt 0:00:52]} 4. Nxe4 {[%emt 0:00:07]} Nd7 {[%emt 0:02:10]} 5. Bd3 {[%emt 0:02:19]} Ngf6 {[%emt 0:01:46]} 6. Ng5 {[%emt 0:00:11]} e6 {[%emt 0:00:22]} 7. Qe2 {[%emt 0:00:14]} Bd6 {[%emt 0:02:57]} 8. Bd2 {[%emt 0:00:08]} h6 {[%emt 0:07:06]} 9. Ne4 {[%emt 0:02:02]} Nxe4 {[%emt 0:00:07]} 10. Qxe4 {[%emt 0:00:04]} Nf6 {[%emt 0:01:23]} 11. Qe2 {[%emt 0:00:09]} Qc7 {[%emt 0:00:38]} 12. Nf3 {[%emt 0:00:27]} b6 {[%emt 0:00:09]} 13. c4 {[%emt 0:07:20] B17: Caro-Kann: Modern Line (4...Nd7).} Bb7 {[%emt 0:00:45]} 14. Bc3 {[%emt 0:01:23]} c5 {[%emt 0:13:12]} 15. O-O-O {[%emt 0:10:39]} O-O-O {[%emt 0:02:25]} 16. dxc5 {[%emt 0:08:41]} Bxc5 {[%emt 0:01:50]} 17. Kb1 {[%emt 0:08:48]} Rhe8 {[%emt 0:17:26]} (17... Qf4 {is more complex.} 18. b4 Ne4 19. Bxg7 Rhg8) 18. Bc2 {[%emt 0:07:38]} Rxd1+ {[%emt 0:20:22]} 19. Rxd1 {[%emt 0:00:11]} Rd8 {[%emt 0:00:05]} 20. Rxd8+ {[%emt 0:08:40]} Kxd8 {[%emt 0:01:22]} 21. Ne5 {[%emt 0:13:52]} Ke7 {[%emt 0:02:23]} 22. g4 $146 {[%emt 0:03:02]} ({Predecessor:} 22. f4 Qd6 23. a3 Bd4 24. Be1 Nd7 25. Bh4+ g5 26. Be1 Nxe5 27. Bb4 Bc5 28. fxe5 {1-0 Vokarev,S (2529)-Danielian,E (2430) Alushta Autumn 1st 2004 (4)}) 22... Qd6 {[%emt 0:01:07]} 23. Nd3 {[%emt 0:07:43]} (23. a3 $11 {remains equal.}) 23... Qxh2 $17 {[%emt 0:03:04]} 24. Nxc5 {[%emt 0:00:07]} Qh1+ {[%emt 0:03:29]} 25. Bd1 {[%emt 0:00:09]} bxc5 {[%emt 0:00:26]} 26. f3 {[%emt 0:00:08]} h5 {[%emt 0:02:47]} 27. gxh5 {[%emt 0:03:49]} Qxh5 {[%emt 0:01:54]} 28. a3 {[%emt 0:02:22]} Nd7 {[%emt 0:01:45]} 29. Ka2 {[%emt 0:00:28]} f6 {[%emt 0:00:31]} 30. Qg2 {[%emt 0:03:22]} g5 {[%emt 0:01:44]} 31. b4 {[%emt 0:04:34]} Qh4 {[%emt 0:00:40]} 32. Qe2 {[%emt 0:01:15]} Nb6 {[%emt 0:05:10]} 33. Bb3 {[%emt 0:00:25] [#]} Qf4 {[%emt 0:00:39]} ({Black should play} 33... Bc6 $1 $17) 34. bxc5 {[%emt 0:01:46]} Bxf3 {[%emt 0:00:32]} 35. Qf2 $2 {[%emt 0:00:13]} (35. Qd3 $17 Be4 36. Qd4) 35... Nd7 $19 {[%emt 0:05:16]} (35... Nxc4 36. c6 Qe3 (36... Bxc6 37. Qxf4 gxf4 38. Bxc4 $16) 37. Bb4+ Kf7 38. Qc2 $19) 36. Bd2 {[%emt 0:00:09]} Qe4 {[%emt 0:00:35]} 37. c6 {[%emt 0:00:50]} Qxc6 {[%emt 0:00:09]} 38. Qxa7 {[%emt 0:00:08]} g4 {[%emt 0:00:42]} 39. Kb2 {[%emt 0:02:34]} Qb6 {[%emt 0:01:14]} 40. Qa4 $2 {[%emt 0:02:56]} (40. Bb4+ {keeps fighting.} Ke8 41. Qxb6 Nxb6 42. Be1) 40... Qd4+ $19 {[%emt 0:00:17]} 41. Bc3 {[%emt 0:30:27]} Qf2+ {[%emt 0:30:36]} 42. Ka1 $2 {[%emt 0:00:08]} (42. Bc2 g3 43. Qb4+ Kf7 44. Qd6 Qb6+ 45. Qxb6 Nxb6 46. Kb3) 42... g3 $19 {[%emt 0:00:00]} 43. Bb4+ {[%emt 0:00:00]} Ke8 {[%emt 0:00:00]} 44. Qa6 {[%emt 0:00:00]} Qd4+ {[%emt 0:00:00]} 45. Ka2 {[%emt 0:00:00]} g2 {[%emt 0:00:00]} 46. Qxe6+ {[%emt 0:00:00]} Kd8 {[%emt 0:00:00]} 47. Qg8+ {[%emt 0:00:00]} Kc7 {[%emt 0:00:00]} 48. Qg3+ {[%emt 0:00:00]} Kc8 {[%emt 0:00:00]} (48... Kb6 $142 49. c5+ Ka7 (49... Nxc5 50. Qxf3 g1=Q 51. Bxc5+ Kxc5 52. Qf5+ Qe5 53. Qc2+ Kb6 54. Qb2 Qxb2+ 55. Kxb2 Qd4+ 56. Kc2 f5 57. Bf7 f4 58. Bh5 Qc5+ 59. Kd3 Qxh5 60. Ke4 f3 61. Ke3 Qf5 62. Kf2 Qf4 63. a4 Ka5 64. Ke1 Qd4 65. Kf1 Qb2 66. Kg1 Qg2#)) 49. Ba5 {[%emt 0:00:00]} Qc5 {[%emt 0:00:00]} ({Worse is} 49... g1=R 50. Qc7#) (49... Ne5 $142 50. Qg8+ Kb7 51. Ba4 Qf2+ (51... g1=R {gets mated.} 52. Qh7+ Ka8 53. Qh8+ Ka7 54. Bb6+ Qxb6 55. Qh7+ Bb7 56. Qc2 Rg2 57. Qxg2 Bxg2 58. Bb5 Qf2+ 59. Kb3 Nd3 60. Kc3 Bf1 61. Kb3 Qd2 62. Be8 Nc5#) 52. Ka1 g1=Q+ (52... g1=R+ 53. Qxg1 Qxg1+ 54. Kb2 Nxc4+ 55. Kb3 Nxa5+ 56. Kc3 Qe3+ 57. Kc2 Be4+ 58. Kd1 Nc4 59. Bc6+ Kxc6 60. a4 Qd2#) 53. Qxg1 Qxg1+ 54. Kb2 Nxc4+ 55. Kb3 Nxa5+ 56. Kc2 Qd4 57. Kc1 Qc3+ (57... Qxa4 58. Kd2 Qd4+ 59. Ke1 Qe3+ 60. Kf1 Qe2+ 61. Kg1 Qg2#) 58. Kb1 Nc4 (58... Qxa3 59. Bd1 Be4+ 60. Bc2 Qb3+ 61. Ka1 Qc3+ 62. Kb1 Qxc2+ 63. Ka1 Nb3#) (58... Qe1+ 59. Kb2 Qd2+ 60. Bc2 Be4 61. Ka2 Qxc2+ 62. Ka1 Nb3#) 59. Bc6+ Kxc6 60. a4 Qb2#) 50. Qe1 {[%emt 0:00:00]} Ne5 {[%emt 0:00:00]} ({Not} 50... g1=R 51. Qe8+ Kb7 52. Qxd7+ Ka6 53. Bc3 $17) 0-1

[Event "45th FIDE Womens Olympiad 2024"]
[Site "Budapest"]
[Date "2024.09.15"]
[Round "5.9"]
[White "Kovacova, Zuzana"]
[Black "Ebrahim, Zahabiyah"]
[Result "0-1"]
[ECO "B15"]
[WhiteElo "2020"]
[BlackElo "1475"]
[PlyCount "52"]
[EventDate "2024.09.05"]
[EventType "team-tourn"]
[EventCountry "HUN"]
[WhiteTeam "Bermuda"]
[BlackTeam "Tanzania"]
[WhiteTeamCountry "BER"]
[BlackTeamCountry "TAN"]
[TimeControl "40/5400+30:1800+30"]

1. e4 c6 2. d4 d5 3. Nc3 dxe4 4. Nxe4 Nf6 5. Nxf6+ exf6 6. c3 Bd6 7. Bd3 O-O 8. Ne2 Re8 9. Qc2 g6 10. Be3 Be6 11. h4 f5 12. Bg5 Qc7 13. Bd2 Bd5 14. O-O-O Bxg2 15. Rhg1 Be4 16. Ng3 Bxg3 17. Rxg3 Nd7 18. Bg5 Re6 19. Qb3 Bxd3 20. Rgxd3 Rae8 21. Re3 Rxe3 22. fxe3 Qb6 23. Qc2 Kg7 24. Bf4 Nf6 25. Be5 Re6 26. Rg1 Rxe5 {0-} 0-1

[Event "45th FIDE Womens Olympiad 2024"]
[Site "Budapest"]
[Date "2024.09.15"]
[Round "5.10"]
[White "Mkrtchyan, Mariam"]
[Black "Song, Yuxin"]
[Result "0-1"]
[ECO "E18"]
[WhiteElo "2328"]
[BlackElo "2373"]
[Annotator "TA"]
[PlyCount "92"]
[EventDate "2024.09.05"]
[EventType "team-tourn"]
[EventCountry "HUN"]
[SourceTitle "playchess.com"]
[Source "ChessBase"]
[SourceQuality "1"]
[WhiteTeam "Armenia"]
[BlackTeam "China"]
[WhiteTeamCountry "ARM"]
[BlackTeamCountry "CHN"]
[TimeControl "40/5400+30:1800+30"]

{[%evp 18,91,16,10,32,16,17,17,16,-12,6,0,16,35,26,14,19,-37,-38,-70,14,12,41,12,58,8,13,10,12,10,13,0,0,0,0,0,7,5,12,0,0,0,0,0,0,0,0,0,39,50,43,0,0,0,0,0,0,0,0,0,0,0,0,0,0,-771,-749,-29974,-29973,-29996,-29997,-29997,-29998,-29998,-29999,-29999]} 1. d4 {[%emt 0:00:03]} Nf6 {[%emt 0:00:06]} 2. c4 {[%emt 0:00:04]} e6 {[%emt 0:00:06]} 3. Nf3 {[%emt 0:00:05]} b6 {[%emt 0:00:08]} 4. g3 {[%emt 0:00:16]} Bb7 {[%emt 0:00:06]} 5. Bg2 {[%emt 0:00:05]} Be7 {[%emt 0:00:10][%cal Bf8e7,Be7f6,Bf6e5][%mdl 32]} 6. Nc3 {[%emt 0:04:25]} Ne4 {[%emt 0:00:16]} 7. Bd2 {[%emt 0:02:46]} O-O {[%emt 0:02:25]} 8. d5 {[%emt 0:06:37]} Nxd2 {[%emt 0:10:24]} 9. Qxd2 {[%emt 0:05:13]} d6 {[%emt 0:05:49]} 10. O-O {[%emt 0:00:39]} Bf6 {[%emt 0:08:35]} 11. e4 {[%emt 0:02:56]} a6 {[%emt 0:04:06]} 12. Rfc1 {[%emt 0:14:17]} Nd7 {[%emt 0:05:31] The position is equal.} 13. b4 {[%emt 0:03:04]} a5 {[%emt 0:04:05]} 14. a3 {[%emt 0:00:21]} Ne5 {[%emt 0:18:04]} 15. Nxe5 {[%emt 0:03:00]} Bxe5 {[%emt 0:00:09]} 16. f4 {[%emt 0:05:57]} Bf6 {[%emt 0:00:15]} 17. Ra2 {[%emt 0:02:54]} ({White should play} 17. Rd1 $11) 17... e5 $15 {[%emt 0:04:52]} 18. Rcc2 {[%emt 0:06:41]} Qd7 {[%emt 0:06:06]} (18... exf4 $15 19. gxf4 g6) 19. f5 $11 {[%emt 0:05:05]} Rfb8 {[%emt 0:03:27]} 20. Bf1 {[%emt 0:01:40]} Qd8 {[%emt 0:00:41]} (20... axb4 $11 21. axb4 Bd8) 21. h4 {[%emt 0:00:22]} (21. b5 $14) 21... axb4 {[%emt 0:01:48]} 22. axb4 {[%emt 0:00:05]} Rxa2 {[%emt 0:00:06]} 23. Rxa2 {[%emt 0:00:04]} Ra8 {[%emt 0:00:06] Black is weak on the light squares} 24. Be2 {[%emt 0:06:56]} g6 {[%emt 0:01:26]} 25. Bd3 {[%emt 0:09:59]} Rxa2 {[%emt 0:02:46]} 26. Qxa2 {[%emt 0:00:06]} Qf8 {[%emt 0:05:43]} 27. Kf2 {[%emt 0:04:32]} Bc8 {[%emt 0:02:45]} 28. Nb5 {[%emt 0:04:55]} Bd8 {[%emt 0:00:13]} 29. Qa7 {[%emt 0:01:21]} gxf5 {[%emt 0:02:32]} 30. exf5 {[%emt 0:00:02][%cal Oa7b8]} Qe7 {[%emt 0:01:18] [#] ...e4 would now be deadly.} ({Avoid the trap} 30... Qh6 $2 31. Qb8 Kg7 32. Qxc8 $18) 31. Be4 {[%emt 0:08:05]} Qf6 {[%emt 0:02:09]} 32. Nxc7 {[%emt 0:00:04]} Bxf5 {[%emt 0:00:05]} 33. Ne8 {[%emt 0:00:15]} Qh6 {[%emt 0:02:32]} 34. Bxf5 {[%emt 0:01:36]} Qd2+ {[%emt 0:00:01]} 35. Kf1 {[%emt 0:01:23]} Qd1+ {[%emt 0:00:01]} 36. Kf2 {[%emt 0:00:22]} Qd2+ {[%emt 0:00:01]} 37. Kf3 {[%emt 0:00:37]} Qd1+ {[%emt 0:00:00]} 38. Ke3 {[%emt 0:01:56]} Qe1+ {[%emt 0:00:07]} 39. Kd3 {[%emt 0:00:31]} Qxg3+ {[%emt 0:01:50]} 40. Ke2 {[%emt 0:00:30]} Qg2+ {[%emt 0:00:01]} 41. Ke3 $2 {[%emt 0:05:40][%mdl 8192]} (41. Kd1 $11 Qf1+ 42. Kd2 Qxf5 43. Nxd6 Qf2+ 44. Kc3 Qe1+ 45. Kc2 Qe2+ 46. Kc1 Qf1+ 47. Kb2) 41... Bxh4 $19 {[%emt 0:07:35] ( -> ...Bg5+)} 42. Bxh7+ {[%emt 0:03:34]} Kf8 $1 {[%emt 0:00:01] Black mates.} 43. Nxd6 {[%emt 0:07:35] [#]} Bg5+ $1 {[%emt 0:00:08]} 44. Kd3 {[%emt 0:00:10]} Qd2+ {[%emt 0:00:04]} 45. Ke4 {[%emt 0:00:03]} Qe3+ {[%emt 0:00:04]} 46. Kf5 {[%emt 0:00:10]} Qf4# {[%emt 0:00:04] Weighted Error Value: White=0.38/Black=0.08 (flawless) .  Loses game:     	White=1     	---        Mistake:       	White=2     	Black=2      Inaccurate:     	White=5     	Black=2      OK:         	White=4     	Black=16     Best:        	White=3     	Black=4} 0-1

[Event "45th FIDE Womens Olympiad 2024"]
[Site "Budapest"]
[Date "2024.09.15"]
[Round "5.10"]
[White "Mahi, R. Shah"]
[Black "Cancino, Shiela"]
[Result "1/2-1/2"]
[ECO "E16"]
[WhiteElo "1602"]
[BlackElo "1663"]
[PlyCount "72"]
[EventDate "2024.09.05"]
[EventType "team-tourn"]
[EventCountry "HUN"]
[WhiteTeam "Tanzania"]
[BlackTeam "Bermuda"]
[WhiteTeamCountry "TAN"]
[BlackTeamCountry "BER"]
[TimeControl "40/5400+30:1800+30"]

1. d4 Nf6 2. c4 e6 3. Nf3 Bb4+ 4. Bd2 Bxd2+ 5. Nbxd2 b6 6. g3 Bb7 7. Bg2 O-O 8. O-O d6 9. Re1 Nbd7 10. e4 e5 11. d5 a5 12. b3 Nc5 13. Qc2 Qd7 14. Ng5 h6 15. Nh3 Nh7 16. f4 exf4 17. Nxf4 f6 18. Bh3 Qf7 19. Ne6 Rfe8 20. Nxc5 bxc5 21. Be6 Rxe6 22. dxe6 Qxe6 23. Nf3 Re8 24. Re3 Ng5 25. Nxg5 fxg5 26. Rae1 Rf8 27. Qc3 Qg4 28. Qd2 Re8 29. Qe2 Qe6 30. Qd2 Qg4 31. Qxa5 Rxe4 32. Rxe4 Bxe4 33. Qxc7 Qf3 34. Qd8+ Kh7 35. Rxe4 Qxe4 36. Qxd6 Qe1+ 1/2-1/2

[Event "45th FIDE Womens Olympiad 2024"]
[Site "Budapest"]
[Date "2024.09.15"]
[Round "5.11"]
[White "Ni, Shiqun"]
[Black "Danielian, Elina"]
[Result "1/2-1/2"]
[ECO "C01"]
[WhiteElo "2348"]
[BlackElo "2393"]
[Annotator "TA"]
[PlyCount "65"]
[EventDate "2024.09.05"]
[EventType "team-tourn"]
[EventCountry "HUN"]
[SourceTitle "playchess.com"]
[Source "ChessBase"]
[SourceQuality "1"]
[WhiteTeam "China"]
[BlackTeam "Armenia"]
[WhiteTeamCountry "CHN"]
[BlackTeamCountry "ARM"]
[TimeControl "40/5400+30:1800+30"]

{[%evp 15,65,20,19,18,8,5,0,2,20,8,32,22,16,0,0,0,0,0,0,0,0,0,0,-22,-13,-13,-10,-27,-31,-20,-13,-27,-26,-16,-13,-14,-13,-22,0,0,0,-6,-2,-4,-2,-11,-2,0,0,0,0,0]} 1. e4 {[%emt 0:00:03]} e6 {[%emt 0:00:12]} 2. d4 {[%emt 0:00:08]} d5 {[%emt 0:00:05]} 3. exd5 {[%emt 0:00:04]} exd5 {[%emt 0:00:04]} 4. Nf3 {[%emt 0:00:06]} Nf6 {[%emt 0:00:17]} 5. Bd3 {[%emt 0:00:14]} Bd6 {[%emt 0:01:01]} 6. O-O {[%emt 0:00:22]} O-O {[%emt 0:00:07]} 7. Bg5 {[%emt 0:01:12]} Bg4 {[%emt 0:04:44]} 8. Nbd2 {[%emt 0:00:22]} Nbd7 {[%emt 0:01:03]} 9. h3 {[%emt 0:00:20]} Bxf3 {[%emt 0:02:43]} 10. Qxf3 {[%emt 0:03:15]} c6 {[%emt 0:01:42]} 11. c3 {[%emt 0:16:54]} Qb6 {[%emt 0:11:06]} 12. b4 {[%emt 0:07:20]} a5 {[%emt 0:03:46]} 13. a3 {[%emt 0:01:17]} Qc7 {[%emt 0:04:03]} 14. Rfe1 {[%emt 0:04:01]} Rfe8 {[%emt 0:00:41]} 15. Nb3 {[%emt 0:07:24]} axb4 {[%emt 0:05:30]} 16. axb4 {[%emt 0:01:04]} Rxa1 {[%emt 0:01:14]} 17. Rxa1 {[%emt 0:00:03]} h6 {[%emt 0:17:18]} 18. Bxf6 {[%emt 0:16:04]} Nxf6 {[%emt 0:00:04]} 19. Nd2 {[%emt 0:01:56]} Qe7 {[%emt 0:05:40]} 20. Nf1 {[%emt 0:05:07]} g6 {[%emt 0:01:41]} 21. b5 {[%emt 0:04:45]} Kg7 {[%emt 0:02:56]} 22. bxc6 {[%emt 0:02:16]} bxc6 {[%emt 0:00:03]} 23. c4 {[%emt 0:00:11]} dxc4 {[%emt 0:06:32]} 24. Bxc4 {[%emt 0:00:29]} c5 {[%emt 0:08:41] The position is equal.} 25. dxc5 {[%emt 0:09:03]} Bxc5 {[%emt 0:00:04]} 26. Ra2 {[%emt 0:01:20]} Qe4 {[%emt 0:05:15]} 27. Qxe4 {[%emt 0:05:36]} Rxe4 {[%emt 0:07:53]} 28. Be2 {[%emt 0:00:18]} h5 {[%emt 0:01:21]} 29. g3 {[%emt 0:00:40]} Rb4 {[%emt 0:00:34]} 30. Bf3 {[%emt 0:00:36]} Bd4 {[%emt 0:01:14]} 31. Kg2 {[%emt 0:00:16]} Rb2 {[%emt 0:00:29]} 32. Rxb2 {[%emt 0:00:32]} Bxb2 {[%emt 0:00:05]} 33. Ne3 {[%emt 0:00:33] An interesting draw.   Weighted Error Value: White=0.04 (flawless) /Black=0.03 (flawless) .  OK:         	White=11    	Black=10} 1/2-1/2